[Event "Titled Tuesday Blitz October 11 Early 2022"]
[White "Aaditya Dhingra"]
[Black "Bacrot, Etienne"]
[WhiteFideId "25678191"]
[BlackFideId "605506"]
[WhiteElo "2054"]
[BlackElo "2666"]
[Result "0-1"]
[Round "01"]
[TimeControl "180+1"]
[Date "2022.10.11"]
[WhiteClock "0:00:13"]
[BlackClock "0:00:16"]

1. Nf3 {[%clk 0:02:59]}  d5 {[%clk 0:03:00]} 2. g3 {[%clk 0:02:58]}  Nf6 {[%clk 0:02:59]} 3. Bg2 {[%clk 0:02:58]}  g6 {[%clk 0:02:59]} 4. b3 {[%clk 0:02:57]}  Bg7 {[%clk 0:02:59]} 5. Bb2 {[%clk 0:02:57]}  c5 {[%clk 0:03:00]} 6. O-O {[%clk 0:02:58]}  Nc6 {[%clk 0:03:00]} 7. d3 {[%clk 0:02:58]}  O-O {[%clk 0:03:00]} 8. Nbd2 {[%clk 0:02:58]}  d4 {[%clk 0:03:00]} 9. e4 {[%clk 0:02:56]}  dxe3 {[%clk 0:02:51]} 10. fxe3 {[%clk 0:02:55]}  Nd5 {[%clk 0:02:51]} 11. Bxg7 {[%clk 0:02:47]}  Kxg7 {[%clk 0:02:43]} 12. Qe1 {[%clk 0:02:30]}  e5 {[%clk 0:02:43]} 13. e4 {[%clk 0:02:29]}  Ndb4 {[%clk 0:02:41]} 14. Qd1 {[%clk 0:02:10]}  Nd4 {[%clk 0:02:28]} 15. Ne1 {[%clk 0:02:09]}  Nb5 {[%clk 0:02:18]} 16. Ndf3 {[%clk 0:01:43]}  f6 {[%clk 0:02:11]} 17. a4 {[%clk 0:01:38]}  Nc7 {[%clk 0:02:04]} 18. Qe2 {[%clk 0:01:30]}  b6 {[%clk 0:02:03]} 19. c3 {[%clk 0:01:30]}  Nc6 {[%clk 0:02:02]} 20. Nc2 {[%clk 0:01:29]}  Ba6 {[%clk 0:02:02]} 21. Rad1 {[%clk 0:01:28]}  Na5 {[%clk 0:02:01]} 22. b4 {[%clk 0:01:25]}  cxb4 {[%clk 0:02:00]} 23. cxb4 {[%clk 0:01:25]}  Nb3 {[%clk 0:02:00]} 24. Qe3 {[%clk 0:01:07]}  Ne6 {[%clk 0:01:57]} 25. b5 {[%clk 0:01:05]}  Bb7 {[%clk 0:01:56]} 26. d4 {[%clk 0:01:04]}  Nbxd4 {[%clk 0:01:50]} 27. Ncxd4 {[%clk 0:01:02]}  exd4 {[%clk 0:01:45]} 28. Nxd4 {[%clk 0:01:02]}  Nxd4 {[%clk 0:01:45]} 29. Rxd4 {[%clk 0:01:02]}  Qe7 {[%clk 0:01:42]} 30. Rfd1 {[%clk 0:00:59]}  Rad8 {[%clk 0:01:37]} 31. e5 {[%clk 0:00:48]}  Rxd4 {[%clk 0:01:16]} 32. exf6+ {[%clk 0:00:42]}  Qxf6 {[%clk 0:01:15]} 33. Qxd4 {[%clk 0:00:40]}  Qxd4+ {[%clk 0:01:00]} 34. Rxd4 {[%clk 0:00:40]}  Bc8 {[%clk 0:01:01]} 35. Rc4 {[%clk 0:00:37]}  Be6 {[%clk 0:01:00]} 36. Rd4 {[%clk 0:00:32]}  Kf6 {[%clk 0:00:58]} 37. Bc6 {[%clk 0:00:27]}  Ke5 {[%clk 0:00:56]} 38. Re4+ {[%clk 0:00:27]}  Kd6 {[%clk 0:00:56]} 39. Kg2 {[%clk 0:00:20]}  a5 {[%clk 0:00:52]} 40. Rd4+ {[%clk 0:00:18]}  Kc5 {[%clk 0:00:51]} 41. Rh4 {[%clk 0:00:18]}  Rf7 {[%clk 0:00:43]} 42. h3 {[%clk 0:00:16]}  Bb3 {[%clk 0:00:42]} 43. Re4 {[%clk 0:00:13]}  Rf6 {[%clk 0:00:32]} 44. g4 {[%clk 0:00:12]}  Rxc6 {[%clk 0:00:18]} 45. bxc6 {[%clk 0:00:13]}  Bd5 {[%clk 0:00:18]} 46. Kf3 {[%clk 0:00:13]}  Bxe4+ {[%clk 0:00:18]} 47. Kxe4 {[%clk 0:00:13]}  Kxc6 {[%clk 0:00:18]} 48. Kd4 {[%clk 0:00:13]}  b5 {[%clk 0:00:18]} 49. axb5+ {[%clk 0:00:13]}  Kxb5 {[%clk 0:00:19]} 50. Kc3 {[%clk 0:00:13]}  Kc5 {[%clk 0:00:18]} 51. h4 {[%clk 0:00:13]}  Kd5 {[%clk 0:00:18]} 52. h5 {[%clk 0:00:12]}  Ke5 {[%clk 0:00:16]} 53. Kb3 {[%clk 0:00:11]}  Kf4 {[%clk 0:00:15]} 54. hxg6 {[%clk 0:00:11]}  hxg6 {[%clk 0:00:15]} 55. Ka4 {[%clk 0:00:12]}  Kxg4 {[%clk 0:00:15]} 56. Kxa5 {[%clk 0:00:13]}  Kf4 {[%clk 0:00:16]} 0-1


[Site "https://www.chess.com"]

[Event "Titled Tuesday Blitz October 11 Early 2022"]
[White "Aarav Dengla"]
[Black "Shkuran, Danylo"]
[WhiteFideId "45059756"]
[BlackFideId "14106248"]
[WhiteElo "2257"]
[BlackElo "2427"]
[Result "1-0"]
[Round "01"]
[TimeControl "180+1"]
[Date "2022.10.12"]
[WhiteClock "0:00:20"]
[BlackClock "0:00:03"]

1. e4 {[%clk 0:03:00]}  e6 {[%clk 0:02:53]} 2. d4 {[%clk 0:02:57]}  d5 {[%clk 0:02:53]} 3. exd5 {[%clk 0:02:58]}  exd5 {[%clk 0:02:51]} 4. Nf3 {[%clk 0:02:59]}  Nf6 {[%clk 0:02:51]} 5. Bd3 {[%clk 0:02:58]}  Bd6 {[%clk 0:02:50]} 6. Qe2+ {[%clk 0:02:58]}  Qe7 {[%clk 0:02:47]} 7. Qxe7+ {[%clk 0:02:57]}  Bxe7 {[%clk 0:02:48]} 8. Bf4 {[%clk 0:02:56]}  c6 {[%clk 0:02:45]} 9. Nbd2 {[%clk 0:02:55]}  Bg4 {[%clk 0:02:41]} 10. h3 {[%clk 0:02:54]}  Bh5 {[%clk 0:02:41]} 11. O-O {[%clk 0:02:51]}  O-O {[%clk 0:02:40]} 12. Rfe1 {[%clk 0:02:50]}  Re8 {[%clk 0:02:38]} 13. Re2 {[%clk 0:02:48]}  Nbd7 {[%clk 0:02:32]} 14. Rae1 {[%clk 0:02:47]}  Bf8 {[%clk 0:02:30]} 15. Rxe8 {[%clk 0:02:46]}  Rxe8 {[%clk 0:02:31]} 16. Rxe8 {[%clk 0:02:45]}  Nxe8 {[%clk 0:02:32]} 17. Ne5 {[%clk 0:02:42]}  Nxe5 {[%clk 0:02:19]} 18. Bxe5 {[%clk 0:02:43]}  f6 {[%clk 0:02:11]} 19. Bb8 {[%clk 0:02:42]}  a6 {[%clk 0:02:11]} 20. Nb3 {[%clk 0:02:42]}  Bd6 {[%clk 0:02:00]} 21. Bxd6 {[%clk 0:02:36]}  Nxd6 {[%clk 0:02:01]} 22. a4 {[%clk 0:02:36]}  h6 {[%clk 0:01:31]} 23. a5 {[%clk 0:02:29]}  Kf7 {[%clk 0:01:29]} 24. Nc5 {[%clk 0:02:29]}  Ke7 {[%clk 0:01:28]} 25. Kf1 {[%clk 0:02:27]}  Be8 {[%clk 0:01:23]} 26. f3 {[%clk 0:02:22]}  Bd7 {[%clk 0:01:21]} 27. Kf2 {[%clk 0:02:15]}  Bc8 {[%clk 0:01:21]} 28. g4 {[%clk 0:02:05]}  Kf7 {[%clk 0:01:10]} 29. f4 {[%clk 0:01:58]}  g6 {[%clk 0:01:07]} 30. Kf3 {[%clk 0:01:55]}  h5 {[%clk 0:01:04]} 31. Kg3 {[%clk 0:01:48]}  hxg4 {[%clk 0:00:57]} 32. hxg4 {[%clk 0:01:49]}  g5 {[%clk 0:00:50]} 33. f5 {[%clk 0:01:43]}  Ke7 {[%clk 0:00:48]} 34. Kf3 {[%clk 0:01:37]}  Kd8 {[%clk 0:00:48]} 35. Ke3 {[%clk 0:01:30]}  Kc7 {[%clk 0:00:48]} 36. b3 {[%clk 0:01:30]}  Nf7 {[%clk 0:00:43]} 37. Be2 {[%clk 0:01:17]}  Nd6 {[%clk 0:00:39]} 38. c4 {[%clk 0:01:09]}  dxc4 {[%clk 0:00:32]} 39. bxc4 {[%clk 0:01:10]}  Bd7 {[%clk 0:00:30]} 40. d5 {[%clk 0:01:05]}  cxd5 {[%clk 0:00:20]} 41. cxd5 {[%clk 0:01:06]}  Bb5 {[%clk 0:00:17]} 42. Bxb5 {[%clk 0:00:53]}  Nxb5 {[%clk 0:00:18]} 43. Ne4 {[%clk 0:00:52]}  b6 {[%clk 0:00:13]} 44. axb6+ {[%clk 0:00:49]}  Kxb6 {[%clk 0:00:14]} 45. Nxf6 {[%clk 0:00:50]}  a5 {[%clk 0:00:09]} 46. Ne8 {[%clk 0:00:47]}  a4 {[%clk 0:00:05]} 47. f6 {[%clk 0:00:32]}  a3 {[%clk 0:00:04]} 48. f7 {[%clk 0:00:33]}  a2 {[%clk 0:00:04]} 49. f8=Q {[%clk 0:00:34]}  a1=Q {[%clk 0:00:04]} 50. Qf6+ {[%clk 0:00:35]}  Qxf6 {[%clk 0:00:02]} 51. Nxf6 {[%clk 0:00:35]}  Kc5 {[%clk 0:00:03]} 52. Ke4 {[%clk 0:00:35]}  Nc3+ {[%clk 0:00:02]} 53. Kf5 {[%clk 0:00:35]}  Nb5 {[%clk 0:00:03]} 54. Kxg5 {[%clk 0:00:35]}  Kd6 {[%clk 0:00:03]} 55. Kh6 {[%clk 0:00:34]}  Ke5 {[%clk 0:00:02]} 56. g5 {[%clk 0:00:34]}  Nd6 {[%clk 0:00:03]} 57. Kh5 {[%clk 0:00:22]}  Kf5 {[%clk 0:00:03]} 58. Nh7 {[%clk 0:00:20]}  Ne4 {[%clk 0:00:02]} 59. g6 {[%clk 0:00:20]}  Nd6 {[%clk 0:00:01]} 60. g7 {[%clk 0:00:20]}  Nf7 {[%clk 0:00:01]} 61. g8=Q {[%clk 0:00:20]}  Ne5 {[%clk 0:00:02]} 62. Qg5+ {[%clk 0:00:20]}  Ke4 {[%clk 0:00:03]} 63. Nf6+ {[%clk 0:00:19]}  Kd4 {[%clk 0:00:03]} 64. Qf4+ {[%clk 0:00:20]} 1-0


[Site "https://www.chess.com"]

[Event "Titled Tuesday Blitz October 11 Early 2022"]
[White "Abdisalimov, Abdimalik"]
[Black "Hajiyev, Kanan"]
[WhiteFideId "14206323"]
[BlackFideId "13404148"]
[WhiteElo "2401"]
[BlackElo "2118"]
[Result "1-0"]
[Round "01"]
[TimeControl "180+1"]
[Date "2022.10.12"]
[WhiteClock "0:01:01"]
[BlackClock "0:00:29"]

1. d4 {[%clk 0:02:32]}  d5 {[%clk 0:02:58]} 2. c4 {[%clk 0:02:31]}  c6 {[%clk 0:02:57]} 3. cxd5 {[%clk 0:02:30]}  cxd5 {[%clk 0:02:57]} 4. Bf4 {[%clk 0:02:31]}  Nf6 {[%clk 0:02:58]} 5. e3 {[%clk 0:02:32]}  Nc6 {[%clk 0:02:54]} 6. Bd3 {[%clk 0:02:32]}  g6 {[%clk 0:02:54]} 7. Nc3 {[%clk 0:02:31]}  Bg7 {[%clk 0:02:54]} 8. h3 {[%clk 0:02:31]}  O-O {[%clk 0:02:54]} 9. Nf3 {[%clk 0:02:32]}  Nd7 {[%clk 0:02:54]} 10. Bh2 {[%clk 0:02:29]}  e5 {[%clk 0:02:52]} 11. Be2 {[%clk 0:02:27]}  exd4 {[%clk 0:02:45]} 12. exd4 {[%clk 0:02:28]}  Qb6 {[%clk 0:02:44]} 13. Nxd5 {[%clk 0:02:23]}  Qxb2 {[%clk 0:02:35]} 14. O-O {[%clk 0:02:18]}  a6 {[%clk 0:02:17]} 15. Bc4 {[%clk 0:01:42]}  Nxd4 {[%clk 0:02:04]} 16. Rb1 {[%clk 0:01:40]}  Nxf3+ {[%clk 0:02:03]} 17. Qxf3 {[%clk 0:01:41]}  Qd4 {[%clk 0:01:58]} 18. Bb3 {[%clk 0:01:26]}  Ne5 {[%clk 0:01:53]} 19. Qe2 {[%clk 0:01:13]}  Qd3 {[%clk 0:01:15]} 20. Qe1 {[%clk 0:01:02]}  Qf5 {[%clk 0:00:29]} 21. Ne7+ {[%clk 0:01:01]} 1-0


[Site "https://www.chess.com"]

[Event "Titled Tuesday Blitz October 11 Early 2022"]
[White "Andreikin, Dmitry"]
[Black "Yurovskykh, Oleksandr"]
[WhiteFideId "4158814"]
[BlackFideId "14134020"]
[WhiteElo "2736"]
[BlackElo "2303"]
[Result "1-0"]
[Round "01"]
[TimeControl "180+1"]
[Date "2022.10.11"]
[WhiteClock "0:00:43"]
[BlackClock "0:00:04"]

1. Nf3 {[%clk 0:03:00]}  d5 {[%clk 0:02:46]} 2. e3 {[%clk 0:02:58]}  Nf6 {[%clk 0:02:41]} 3. c4 {[%clk 0:02:59]}  e6 {[%clk 0:02:35]} 4. Nc3 {[%clk 0:02:58]}  Be7 {[%clk 0:02:32]} 5. b3 {[%clk 0:02:57]}  O-O {[%clk 0:02:31]} 6. Bb2 {[%clk 0:02:58]}  c5 {[%clk 0:02:30]} 7. cxd5 {[%clk 0:02:58]}  Nxd5 {[%clk 0:02:30]} 8. h4 {[%clk 0:02:56]}  Nc6 {[%clk 0:02:28]} 9. Qb1 {[%clk 0:02:53]}  h6 {[%clk 0:02:18]} 10. g4 {[%clk 0:02:41]}  b6 {[%clk 0:02:11]} 11. g5 {[%clk 0:02:11]}  h5 {[%clk 0:02:11]} 12. Bd3 {[%clk 0:02:05]}  Bb7 {[%clk 0:02:01]} 13. Bh7+ {[%clk 0:02:05]}  Kh8 {[%clk 0:02:01]} 14. Be4 {[%clk 0:02:06]}  Kg8 {[%clk 0:01:27]} 15. Ne2 {[%clk 0:02:00]}  Bd6 {[%clk 0:01:16]} 16. Rg1 {[%clk 0:01:32]}  Qe7 {[%clk 0:01:12]} 17. a3 {[%clk 0:01:20]}  Rfd8 {[%clk 0:01:07]} 18. g6 {[%clk 0:01:04]}  f6 {[%clk 0:01:02]} 19. Qc2 {[%clk 0:01:04]}  Rac8 {[%clk 0:00:59]} 20. Rd1 {[%clk 0:01:03]}  Ne5 {[%clk 0:00:37]} 21. Nxe5 {[%clk 0:01:01]}  Bxe5 {[%clk 0:00:38]} 22. Bxe5 {[%clk 0:01:01]}  fxe5 {[%clk 0:00:39]} 23. Rg5 {[%clk 0:01:01]}  Nf6 {[%clk 0:00:33]} 24. Ng3 {[%clk 0:00:56]}  Ba6 {[%clk 0:00:23]} 25. Nxh5 {[%clk 0:00:52]}  Nxh5 {[%clk 0:00:23]} 26. Rxh5 {[%clk 0:00:53]}  Qf6 {[%clk 0:00:24]} 27. Qc3 {[%clk 0:00:47]}  Rd4 {[%clk 0:00:03]} 28. exd4 {[%clk 0:00:45]}  exd4 {[%clk 0:00:04]} 29. Qg3 {[%clk 0:00:44]}  Rf8 {[%clk 0:00:04]} 30. f3 {[%clk 0:00:42]}  d3 {[%clk 0:00:04]} 31. Qe5 {[%clk 0:00:41]}  Qe7 {[%clk 0:00:04]} 32. Rh8+ {[%clk 0:00:41]}  Kxh8 {[%clk 0:00:04]} 33. Qh5+ {[%clk 0:00:42]}  Kg8 {[%clk 0:00:04]} 34. Qh7# {[%clk 0:00:43]} 1-0


[Site "https://www.chess.com"]

[Event "Titled Tuesday Blitz October 11 Early 2022"]
[White "Arabidze, Meri"]
[Black "Jean Louis, Marckens"]
[WhiteFideId "13604040"]
[BlackFideId "11900270"]
[WhiteElo "2403"]
[BlackElo "2030"]
[Result "1-0"]
[Round "01"]
[TimeControl "180+1"]
[Date "2022.10.12"]
[WhiteClock "0:00:04"]
[BlackClock "0:00:11"]

1. Nf3 {[%clk 0:03:00]}  d5 {[%clk 0:02:59]} 2. g3 {[%clk 0:03:01]}  Nf6 {[%clk 0:02:58]} 3. Bg2 {[%clk 0:03:01]}  e6 {[%clk 0:02:58]} 4. O-O {[%clk 0:03:02]}  Be7 {[%clk 0:02:58]} 5. b3 {[%clk 0:03:02]}  O-O {[%clk 0:02:58]} 6. Bb2 {[%clk 0:03:03]}  c5 {[%clk 0:02:57]} 7. c4 {[%clk 0:03:04]}  Nc6 {[%clk 0:02:53]} 8. cxd5 {[%clk 0:03:03]}  exd5 {[%clk 0:02:53]} 9. d4 {[%clk 0:03:03]}  b6 {[%clk 0:02:12]} 10. Nc3 {[%clk 0:02:59]}  Bb7 {[%clk 0:02:03]} 11. Rc1 {[%clk 0:02:59]}  Rc8 {[%clk 0:02:02]} 12. e3 {[%clk 0:02:59]}  cxd4 {[%clk 0:01:58]} 13. Nxd4 {[%clk 0:03:00]}  Nxd4 {[%clk 0:01:53]} 14. Qxd4 {[%clk 0:03:01]}  Bc5 {[%clk 0:01:52]} 15. Qh4 {[%clk 0:03:01]}  Ne4 {[%clk 0:01:44]} 16. Qxd8 {[%clk 0:02:43]}  Rfxd8 {[%clk 0:01:43]} 17. Nb5 {[%clk 0:02:42]}  Ba6 {[%clk 0:01:33]} 18. a4 {[%clk 0:02:09]}  Nd2 {[%clk 0:01:25]} 19. Rfd1 {[%clk 0:02:08]}  Nxb3 {[%clk 0:01:24]} 20. Rb1 {[%clk 0:02:09]}  Bxb5 {[%clk 0:01:19]} 21. axb5 {[%clk 0:02:10]}  d4 {[%clk 0:01:17]} 22. Rd3 {[%clk 0:01:39]}  dxe3 {[%clk 0:01:13]} 23. Rxb3 {[%clk 0:01:39]}  exf2+ {[%clk 0:01:13]} 24. Kf1 {[%clk 0:01:39]}  Rd2 {[%clk 0:01:13]} 25. Bc3 {[%clk 0:01:17]}  Rc2 {[%clk 0:01:06]} 26. Be4 {[%clk 0:01:15]}  Ra2 {[%clk 0:01:05]} 27. Rd1 {[%clk 0:01:06]}  g6 {[%clk 0:00:41]} 28. Bf6 {[%clk 0:01:00]}  Re8 {[%clk 0:00:38]} 29. Bc6 {[%clk 0:00:49]}  Re6 {[%clk 0:00:20]} 30. Bb2 {[%clk 0:00:39]}  Rd6 {[%clk 0:00:12]} 31. Rxd6 {[%clk 0:00:32]}  Bxd6 {[%clk 0:00:12]} 32. Bd5 {[%clk 0:00:28]}  Bc5 {[%clk 0:00:11]} 33. Bc4 {[%clk 0:00:20]}  Kf8 {[%clk 0:00:11]} 34. g4 {[%clk 0:00:20]}  h5 {[%clk 0:00:10]} 35. g5 {[%clk 0:00:20]}  Ke7 {[%clk 0:00:09]} 36. Be2 {[%clk 0:00:15]}  Kd6 {[%clk 0:00:09]} 37. Kg2 {[%clk 0:00:12]}  Kd5 {[%clk 0:00:08]} 38. Bf1 {[%clk 0:00:12]}  Ke4 {[%clk 0:00:08]} 39. Bf6 {[%clk 0:00:11]}  Kf5 {[%clk 0:00:08]} 40. Rf3+ {[%clk 0:00:11]}  Ke6 {[%clk 0:00:07]} 41. Rd3 {[%clk 0:00:11]}  Ra4 {[%clk 0:00:06]} 42. h3 {[%clk 0:00:10]}  h4 {[%clk 0:00:06]} 43. Rd8 {[%clk 0:00:10]}  Rb4 {[%clk 0:00:05]} 44. Re8+ {[%clk 0:00:09]}  Kd5 {[%clk 0:00:05]} 45. Ra8 {[%clk 0:00:09]}  Rb3 {[%clk 0:00:05]} 46. Rd8+ {[%clk 0:00:07]}  Ke4 {[%clk 0:00:05]} 47. Re8+ {[%clk 0:00:07]}  Kf5 {[%clk 0:00:05]} 48. Re5+ {[%clk 0:00:07]}  Kf4 {[%clk 0:00:04]} 49. Rxc5 {[%clk 0:00:03]}  Rg3+ {[%clk 0:00:05]} 50. Kxf2 {[%clk 0:00:03]}  bxc5 {[%clk 0:00:06]} 51. Be7 {[%clk 0:00:03]}  Rb3 {[%clk 0:00:06]} 52. Bxc5 {[%clk 0:00:02]}  Rb2+ {[%clk 0:00:06]} 53. Kg1 {[%clk 0:00:03]}  Kg3 {[%clk 0:00:07]} 54. Bd6+ {[%clk 0:00:03]}  Kf3 {[%clk 0:00:08]} 55. Be5 {[%clk 0:00:03]}  Rb4 {[%clk 0:00:07]} 56. Bf6 {[%clk 0:00:03]}  Rb2 {[%clk 0:00:07]} 57. Bxb2 {[%clk 0:00:02]}  Ke4 {[%clk 0:00:07]} 58. Bf6 {[%clk 0:00:02]}  Kd5 {[%clk 0:00:07]} 59. Bd8 {[%clk 0:00:03]}  a5 {[%clk 0:00:07]} 60. Bxa5 {[%clk 0:00:02]}  Kc5 {[%clk 0:00:07]} 61. b6 {[%clk 0:00:03]}  Kc6 {[%clk 0:00:07]} 62. Bg2+ {[%clk 0:00:03]}  Kd7 {[%clk 0:00:08]} 63. b7 {[%clk 0:00:03]}  Ke6 {[%clk 0:00:09]} 64. b8=Q {[%clk 0:00:04]}  Kf5 {[%clk 0:00:10]} 65. Qe8 {[%clk 0:00:04]}  Kxg5 {[%clk 0:00:11]} 66. Qxf7 {[%clk 0:00:04]}  Kh6 {[%clk 0:00:11]} 67. Bd2+ {[%clk 0:00:04]}  Kh5 {[%clk 0:00:11]} 68. Qh7# {[%clk 0:00:04]} 1-0


[Site "https://www.chess.com"]

[Event "Titled Tuesday Blitz October 11 Early 2022"]
[White "Araujo Sanchez, Josue"]
[Black "Ibarra Jerez, Jose Carlos"]
[WhiteFideId "6416896"]
[BlackFideId "2226332"]
[WhiteElo "2370"]
[BlackElo "2627"]
[Result "0-1"]
[Round "01"]
[TimeControl "180+1"]
[Date "2022.10.11"]
[WhiteClock "0:00:02"]
[BlackClock "0:00:06"]

1. e4 {[%clk 0:02:49]}  c5 {[%clk 0:03:00]} 2. Nf3 {[%clk 0:02:48]}  e6 {[%clk 0:02:59]} 3. c3 {[%clk 0:02:47]}  Nf6 {[%clk 0:02:59]} 4. d3 {[%clk 0:02:39]}  d5 {[%clk 0:02:58]} 5. Nbd2 {[%clk 0:02:39]}  Nc6 {[%clk 0:02:58]} 6. g3 {[%clk 0:02:39]}  g6 {[%clk 0:02:58]} 7. Bg2 {[%clk 0:02:38]}  Bg7 {[%clk 0:02:59]} 8. O-O {[%clk 0:02:39]}  O-O {[%clk 0:03:00]} 9. Re1 {[%clk 0:02:39]}  a5 {[%clk 0:02:57]} 10. a4 {[%clk 0:02:37]}  b6 {[%clk 0:02:57]} 11. exd5 {[%clk 0:02:28]}  exd5 {[%clk 0:02:41]} 12. Nf1 {[%clk 0:02:24]}  h6 {[%clk 0:02:37]} 13. h3 {[%clk 0:02:18]}  Be6 {[%clk 0:02:35]} 14. Bf4 {[%clk 0:02:03]}  g5 {[%clk 0:02:33]} 15. Be3 {[%clk 0:02:01]}  Qd7 {[%clk 0:02:28]} 16. Kh2 {[%clk 0:01:56]}  d4 {[%clk 0:02:28]} 17. cxd4 {[%clk 0:01:52]}  cxd4 {[%clk 0:02:29]} 18. Bd2 {[%clk 0:01:52]}  Nd5 {[%clk 0:02:27]} 19. Rc1 {[%clk 0:01:41]}  Rac8 {[%clk 0:02:27]} 20. h4 {[%clk 0:01:23]}  f6 {[%clk 0:02:15]} 21. Kg1 {[%clk 0:01:21]}  Rfe8 {[%clk 0:02:15]} 22. Re2 {[%clk 0:01:09]}  Bf7 {[%clk 0:02:15]} 23. Rxe8+ {[%clk 0:01:08]}  Rxe8 {[%clk 0:02:14]} 24. Be1 {[%clk 0:01:03]}  Ndb4 {[%clk 0:02:10]} 25. Bxb4 {[%clk 0:00:58]}  Nxb4 {[%clk 0:02:10]} 26. hxg5 {[%clk 0:00:59]}  hxg5 {[%clk 0:02:06]} 27. Ne1 {[%clk 0:00:56]}  Rxe1 {[%clk 0:01:59]} 28. Qxe1 {[%clk 0:00:52]}  Nxd3 {[%clk 0:02:00]} 29. Qd2 {[%clk 0:00:36]}  Nxc1 {[%clk 0:01:59]} 30. Qxc1 {[%clk 0:00:37]}  Qxa4 {[%clk 0:01:58]} 31. Qc8+ {[%clk 0:00:34]}  Qe8 {[%clk 0:01:57]} 32. Qc7 {[%clk 0:00:30]}  Qe6 {[%clk 0:01:55]} 33. Qd8+ {[%clk 0:00:25]}  Bf8 {[%clk 0:01:55]} 34. Qxd4 {[%clk 0:00:25]}  Bc5 {[%clk 0:01:53]} 35. Qd2 {[%clk 0:00:25]}  a4 {[%clk 0:01:52]} 36. Nh2 {[%clk 0:00:20]}  Kg7 {[%clk 0:01:43]} 37. Bf3 {[%clk 0:00:21]}  Qe5 {[%clk 0:01:40]} 38. Ng4 {[%clk 0:00:20]}  Qd4 {[%clk 0:01:40]} 39. Qc2 {[%clk 0:00:18]}  Bb3 {[%clk 0:01:29]} 40. Qe2 {[%clk 0:00:18]}  Bc4 {[%clk 0:01:28]} 41. Qe8 {[%clk 0:00:15]}  Qxb2 {[%clk 0:01:19]} 42. Qxa4 {[%clk 0:00:15]}  Be6 {[%clk 0:01:15]} 43. Qa7+ {[%clk 0:00:13]}  Kg6 {[%clk 0:01:14]} 44. Be4+ {[%clk 0:00:07]}  f5 {[%clk 0:01:13]} 45. Qb8 {[%clk 0:00:01]}  fxe4 {[%clk 0:01:08]} 46. Qe8+ {[%clk 0:00:02]}  Bf7 {[%clk 0:00:34]} 47. Ne5+ {[%clk 0:00:01]}  Kh6 {[%clk 0:00:07]} 48. Nxf7+ {[%clk 0:00:01]}  Kh7 {[%clk 0:00:07]} 49. Ne5 {[%clk 0:00:02]}  Qxf2+ {[%clk 0:00:06]} 0-1


[Site "https://www.chess.com"]

[Event "Titled Tuesday Blitz October 11 Early 2022"]
[White "Ardila, Oscar Humberto"]
[Black "Orlov, Georgi"]
[WhiteFideId "4404742"]
[BlackFideId "2011271"]
[WhiteElo "1898"]
[BlackElo "2577"]
[Result "0-1"]
[Round "01"]
[TimeControl "180+1"]
[Date "2022.10.12"]
[WhiteClock "0:00:15"]
[BlackClock "0:00:28"]

1. d4 {[%clk 0:02:58]}  Nf6 {[%clk 0:02:45]} 2. c4 {[%clk 0:02:57]}  Nc6 {[%clk 0:02:37]} 3. d5 {[%clk 0:02:55]}  Ne5 {[%clk 0:02:35]} 4. Qc2 {[%clk 0:02:53]}  e6 {[%clk 0:02:34]} 5. e4 {[%clk 0:02:45]}  exd5 {[%clk 0:02:32]} 6. cxd5 {[%clk 0:02:44]}  Bb4+ {[%clk 0:02:29]} 7. Bd2 {[%clk 0:02:45]}  Qe7 {[%clk 0:02:27]} 8. Ne2 {[%clk 0:02:32]}  c6 {[%clk 0:02:08]} 9. dxc6 {[%clk 0:02:21]}  dxc6 {[%clk 0:02:02]} 10. a3 {[%clk 0:02:21]}  Bxd2+ {[%clk 0:01:59]} 11. Nxd2 {[%clk 0:02:21]}  O-O {[%clk 0:01:49]} 12. Ng3 {[%clk 0:02:17]}  h5 {[%clk 0:01:35]} 13. O-O-O {[%clk 0:02:10]}  h4 {[%clk 0:01:35]} 14. Nf5 {[%clk 0:02:10]}  Bxf5 {[%clk 0:01:34]} 15. exf5 {[%clk 0:02:10]}  Neg4 {[%clk 0:01:28]} 16. Nf3 {[%clk 0:02:05]}  Nd5 {[%clk 0:01:11]} 17. Bc4 {[%clk 0:02:02]}  Nf4 {[%clk 0:01:05]} 18. Rhe1 {[%clk 0:01:56]}  Qf6 {[%clk 0:00:58]} 19. h3 {[%clk 0:01:50]}  Nh6 {[%clk 0:00:55]} 20. Re4 {[%clk 0:01:00]}  Nd5 {[%clk 0:00:43]} 21. Rxh4 {[%clk 0:00:54]}  Nxf5 {[%clk 0:00:40]} 22. Rh5 {[%clk 0:00:52]}  g6 {[%clk 0:00:39]} 23. Rg5 {[%clk 0:00:47]}  Rad8 {[%clk 0:00:35]} 24. Rxf5 {[%clk 0:00:31]}  Qxf5 {[%clk 0:00:33]} 25. Qxf5 {[%clk 0:00:31]}  gxf5 {[%clk 0:00:33]} 26. Nh4 {[%clk 0:00:29]}  Ne7 {[%clk 0:00:32]} 27. Re1 {[%clk 0:00:25]}  Rd4 {[%clk 0:00:32]} 28. Rxe7 {[%clk 0:00:24]}  Rxc4+ {[%clk 0:00:32]} 29. Kb1 {[%clk 0:00:23]}  Rxh4 {[%clk 0:00:32]} 30. Rxb7 {[%clk 0:00:22]}  Re4 {[%clk 0:00:31]} 31. Rxa7 {[%clk 0:00:21]}  Rb8 {[%clk 0:00:31]} 32. b4 {[%clk 0:00:18]}  Re2 {[%clk 0:00:32]} 33. Ra6 {[%clk 0:00:17]}  Rd8 {[%clk 0:00:31]} 34. Kc1 {[%clk 0:00:16]}  Rxf2 {[%clk 0:00:28]} 35. Rxc6 {[%clk 0:00:16]}  Re8 {[%clk 0:00:28]} 36. Kd1 {[%clk 0:00:16]}  Ree2 {[%clk 0:00:27]} 37. b5 {[%clk 0:00:16]}  Ra2 {[%clk 0:00:27]} 38. Ke1 {[%clk 0:00:16]}  Rxg2 {[%clk 0:00:27]} 39. Kf1 {[%clk 0:00:17]}  Rh2 {[%clk 0:00:27]} 40. Kg1 {[%clk 0:00:16]}  Rhb2 {[%clk 0:00:28]} 41. Rc1 {[%clk 0:00:15]}  Rxb5 {[%clk 0:00:28]} 0-1


[Site "https://www.chess.com"]

[Event "Titled Tuesday Blitz October 11 Early 2022"]
[White "Azadaliyev, Jahandar"]
[Black "Pappelis, Dimitrios"]
[WhiteFideId "13425811"]
[BlackFideId "4215281"]
[WhiteElo "2204"]
[BlackElo "2104"]
[Result "1-0"]
[Round "01"]
[TimeControl "180+1"]
[Date "2022.10.12"]
[WhiteClock "0:00:45"]
[BlackClock "0:01:25"]

1. e4 {[%clk 0:01:51]}  c5 {[%clk 0:02:58]} 2. Nf3 {[%clk 0:01:50]}  Nc6 {[%clk 0:02:57]} 3. d4 {[%clk 0:01:50]}  cxd4 {[%clk 0:02:58]} 4. Nxd4 {[%clk 0:01:51]}  Nf6 {[%clk 0:02:58]} 5. Nc3 {[%clk 0:01:51]}  e6 {[%clk 0:02:59]} 6. Ndb5 {[%clk 0:01:50]}  d6 {[%clk 0:02:59]} 7. Bg5 {[%clk 0:01:48]}  a6 {[%clk 0:02:54]} 8. Na3 {[%clk 0:01:46]}  b5 {[%clk 0:02:49]} 9. Qf3 {[%clk 0:01:21]}  Bb7 {[%clk 0:02:36]} 10. Naxb5 {[%clk 0:01:18]}  axb5 {[%clk 0:02:33]} 11. Bxb5 {[%clk 0:01:19]}  Rb8 {[%clk 0:02:24]} 12. O-O-O {[%clk 0:01:17]}  Qb6 {[%clk 0:02:12]} 13. e5 {[%clk 0:01:11]}  dxe5 {[%clk 0:02:05]} 14. Bxf6 {[%clk 0:01:02]}  gxf6 {[%clk 0:02:03]} 15. Qxf6 {[%clk 0:01:03]}  Rg8 {[%clk 0:02:02]} 16. Qxe5 {[%clk 0:00:55]}  Qxb5 {[%clk 0:01:55]} 17. Qxb5 {[%clk 0:00:53]}  Be7 {[%clk 0:01:54]} 18. Qh5 {[%clk 0:00:52]}  Bg5+ {[%clk 0:01:52]} 19. Kb1 {[%clk 0:00:52]}  Ke7 {[%clk 0:01:49]} 20. Rhe1 {[%clk 0:00:50]}  Nb4 {[%clk 0:01:45]} 21. Qxh7 {[%clk 0:00:48]}  Bxg2 {[%clk 0:01:38]} 22. Rd7+ {[%clk 0:00:45]}  Kxd7 {[%clk 0:01:33]} 23. Qxf7+ {[%clk 0:00:46]}  Kc8 {[%clk 0:01:25]} 24. Qxg8+ {[%clk 0:00:45]}  Kb7 {[%clk 0:01:25]} 25. Qxg5 {[%clk 0:00:45]} 1-0


[Site "https://www.chess.com"]